Cogmind - Beta 15 @@@ ROGUE MODE // 2025.06.02 @ 22:45:11 Player: Polariusz Result: Destroyed by UR-M2B(R) with Subdweller Beam Cannon Performance ------------- Evolutions (0) 0 Regions Visited (1) 200 Robots Destroyed (16) 80 Value Destroyed (414) 414 Prototype IDs (3) 60 Alien Tech Used (0) 0 Bonus (0) 0 TOTAL SCORE: 754 Bonus ------- None Cogmind --------- Core Integrity 0/250 Matter 298/300 Energy 160/160 System Corruption 0% Temperature Cool (20) Movement Treading (160) Location -10/Materials Parts ------- > --- POWER (1) -------- Light Nuclear Core > --- PROPULSION (2) --- Light Treads Light Treads > --- UTILITY (2) ------ Large Storage Unit > --- WEAPON (2) ------- Light Assault Rifle Light Assault Rifle > --- INVENTORY (15) --- Light Ion Engine Light Treads Heat Sink Improved Heat Sink Signal Interpreter Targeting Computer Targeting Computer Targeting Computer Targeting Computer Small Laser Grenade Launcher Datajack Peak State ------------ > --- POWER ------------ Light Nuclear Core > --- PROPULSION ------- Light Treads Light Treads > --- UTILITY ---------- Large Storage Unit > --- WEAPON ----------- Light Assault Rifle Light Assault Rifle > --- INVENTORY -------- Light Ion Engine Light Ion Engine Light Treads Heat Sink Signal Interpreter Targeting Computer Targeting Computer Targeting Computer Targeting Computer Small Laser Grenade Launcher Datajack [Rating: 9] Favorites ----------- Power Ion Engine Engine Ion Engine Power Core Light Nuclear Core Propulsion Light Treads Treads Light Treads Wheel Wheel Utility Heat Sink Device Heat Sink Storage Small Storage Unit Weapon Medium Laser Energy Gun Medium Laser Ballistic Gun Assault Rifle Ballistic Cannon Light Cannon Special Melee Weapon Datajack Build | -11 -10 ------- Run | Yrd Mat Slots Evolved . | . . Power . | . . Propulsion . | . . Utility . | . . Weapon . | . . Parts Attached 18 | 6 12 Power 4 | 1 3 Engine 3 | 1 2 Core 1 | . 1 Reactor . | . . Propulsion 4 | 2 2 Treads 2 | . 2 Leg . | . . Wheel 2 | 2 . Hover . | . . Flight . | . . Utility 4 | 1 3 Device 1 | . 1 Storage 3 | 1 2 Processor . | . . Hackware . | . . Protection . | . . Artifact . | . . Weapon 6 | 2 4 Energy Gun 1 | 1 . Energy Cannon . | . . Ballistic Gun 3 | 1 2 Ballistic Cannon 1 | . 1 Launcher . | . . Special Weapon . | . . Impact Weapon . | . . Slashing Weapon . | . . Piercing Weapon . | . . Special Melee Weapon 1 | . 1 Unidentified Prototypes . | . . Parts Lost 2 | . 2 Power 1 | . 1 Propulsion 1 | . 1 Utility . | . . Weapon . | . . Highest Loss Streak 1 | . 1 To Critical Strikes . | . . Average Backups 7 | 2 7 Power 1 | . 1 Propulsion 1 | 1 1 Utility 2 | . 2 Weapon 1 | . 1 Tool/Special . | . . Unused Backups 10 | . 10 Power 1 | . 1 Propulsion 1 | . 1 Utility 6 | . 6 Weapon 2 | . 2 Tool/Special . | . . Average Slot Usage (%) 84 | . 84 Engine 13 | . 13 Treads 12 | . 12 Wheel 6 | . 6 Device 8 | . 8 Storage 14 | . 14 Energy Gun 9 | . 9 Ballistic Gun 16 | . 16 Ballistic Cannon 1 | . 1 Peak Build Rating 9 | 6 9 Average Rating 6 | 3 6 On Entrance 3 | . 6 Naked Turns . | . . Heaviest Build 27 | 14 27 Greatest Support 40 | 20 40 Greatest Overweight (x) 1 | . 1 Average Overweight (x) . | . . Largest Inventory Capacity 15 | 8 15 Average Capacity 10 | 7 10 Most Carried 12 | 5 12 Average Carried 7 | 2 7 Final Capacity 15 | 8 15 Final Carried 12 | 3 12 Class Distribution -------------------- 91% | Mutant 8% | Scavenger-Mutant Dominant Class ---------------- Mutant | -10/Materials Resources | -11 -10 ----------- Run | Yrd Mat Matter Collected 583 | 210 373 Remotely . | . . Salvage Created 519 | . 519 Parts 43 | . 43 Haulers Intercepted 1 | . 1 Recyclers Shooed . | . . Parts Field Recycled . | . . Retrieved Matter . | . . Parts Self-Destructed . | . . Prevented . | . . Kills | -11 -10 ------- Run | Yrd Mat Combat Hostiles Destroyed 15 | . 15 Guns 14 | . 14 AOE 1 | . 1 Classes Destroyed 3 | . 3 Hauler 1 | . 1 Swarmer 6 | . 6 Grunt 9 | . 9 Best Kill Streak 3 | . 3 Combat Bots Only 3 | . 3 Max Kills in Single Turn 1 | . 1 Gunslinging . | . . Exploded 1 | . 1 Melee . | . . Uniques/NPCs Destroyed . | . . Combat | -11 -10 -------- Run | Yrd Mat Hostile Shots Fired 115 | . 115 Missed 38 | . 38 Hits 77 | . 77 Projectile 77 | . 77 Critical Strikes 3 | . 3 Damage Taken 852 | . 852 Core 254 | . 254 Absorbed by Shields . | . . Core Remaining (%) 100 | 100 . Volleys Fired 68 | . 68 Largest 2 | . 2 Hottest 80 | . 80 Shots Fired 134 | . 134 Gun 123 | . 123 Cannon 11 | . 11 Launcher . | . . Special . | . . Kinetic 80 | . 80 Thermal 54 | . 54 Explosive . | . . Electromagnetic . | . . Robot Hit Streak 8 | . 8 Robot Miss Streak 4 | . 4 Penetration Max . | . . Secondary Targets 1 | . 1 Max Gunslinging Chain 1 | . 1 Shots Hit Robots 71 | . 71 Core Hits 31 | . 31 Critical Kills . | . . Critical Parts Destroyed . | . . Critical Strikes 3 | . 3 Burn 3 | . 3 Melee Attacks 4 | . 4 Impact . | . . Slashing . | . . Piercing . | . . Sneak Attacks 3 | . 3 Combat Hostiles . | . . Follow-up Attacks . | . . Damage Inflicted 977 | . 977 Guns 784 | . 784 Cannons . | . . Explosions 193 | . 193 Melee . | . . Ramming . | . . Kinetic 418 | . 418 Thermal 366 | . 366 Explosive 193 | . 193 Electromagnetic . | . . Impact . | . . Slashing . | . . Piercing . | . . Highest Corruption . | . . Average Corruption . | . . Corruption Purged . | . . Corruption Blocked . | . . Overload Shots . | . . Overflow Damage 18 | . 18 Projectiles . | . . Explosions 18 | . 18 Melee . | . . Knockbacks . | . . Impact . | . . Kinetic . | . . Secondary . | . . Self-Inflicted Damage 46 | . 46 Shots 1 | . 1 Rammed . | . . Targets Rammed . | . . Kicked . | . . Crushed . | . . Highest Temperature 244 | . 244 Average Temperature 69 | . 69 Received Heat Transfer 267 | . 267 Effects 1 | . 1 Interference 1 | . 1 Siege Activations . | . . Martial Activations . | . . Shielding Activations . | . . Robots Disrupted . | . . Combat Hostiles . | . . Robots Corrupted . | . . Combat Hostiles . | . . Parts Fried . | . . Impact Corruptions . | . . Robots Melted . | . . Combat Hostiles . | . . Parts Melted 1 | . 1 Heat Transferred 1295 | . 1295 Parts Sabotaged . | . . Parts Stolen . | . . Parts Stripped . | . . Power Chain Reactions . | . . Alert | -11 -10 ------- Run | Yrd Mat Maximum Alert Level . | . . Low Security (%) 100 | 100 100 Level 1 . | . . Level 2 . | . . Level 3 . | . . Level 4 . | . . Level 5 . | . . High Security . | . . Max Security . | . . Peak Influence 156 | . 156 Initial . | . . Average 74 | . 78 Influence Increases 478 | . 478 Destroy 0b10 Robot/C 300 | . 300 Destroy 0b10 Robot/NC 5 | . 5 Destroy Leader 62 | . 62 Successful Hack 11 | . 11 Disable Machine 30 | . 30 Destroy Structure 25 | . 25 Partial Spotted 15 | . 15 Lose Combat Pursuer 30 | . 30 Influence Decreases 372 | . 372 Time Decay 352 | . 352 Lost Part 20 | . 20 Squads Dispatched 3 | . 3 Investigation 1 | . 1 Extermination . | . . Reinforcement 2 | . 2 Assault . | . . Garrison . | . . Intercept . | . . Searches Triggered . | . . Construction Impeded . | . . Haulers Reinforced . | . . Active Scanning Responses . | . . Cargo Convoy Interrupts . | . . Stealth | -11 -10 --------- Run | Yrd Mat Distress Signals 2 | . 2 Communications Jammed . | . . Distress Signals . | . . Times Spotted 32 | . 32 Peak Tracking Total 7 | . 7 Tactical Retreats 1 | . 1 Traps | -11 -10 ------- Run | Yrd Mat Traps Triggered . | . . Indirectly . | . . Trap Hack Attempts . | . . Triggered . | . . Disarmed . | . . Reprogrammed . | . . Reused . | . . Traps Extracted . | . . Installed . | . . Triggered . | . . Machines | -11 -10 ---------- Run | Yrd Mat Machines Disabled 2 | . 2 Max in Single Turn 2 | . 2 Machines Repaired . | . . Machines Dismantled . | . . Machines Sabotaged . | . . Overloaded Fab Kills . | . . Hacking | -11 -10 --------- Run | Yrd Mat Machines Accessed 2 | . 2 Terminals 2 | . 2 Fabricators . | . . Repair Stations . | . . Recycling Units . | . . Scanalyzers . | . . Garrison Access . | . . Total Hacks 3 | . 3 Successful 2 | . 2 Failed 1 | . 1 Catastrophic 1 | . 1 Database Lockouts . | . . Manual 2 | . 2 Terminals 3 | . 3 Fabricators . | . . Repair Stations . | . . Recycling Units . | . . Scanalyzers . | . . Garrison Access . | . . Terminal Hacks 2 | . 2 Prototype ID Bank 2 | . 2 Fabricator Hacks . | . . Repair Station Hacks . | . . Recycling Unit Hacks . | . . Scanalyzer . | . . Garrison Access Hacks . | . . Unauthorized Hacks . | . . Terminals . | . . Fabricators . | . . Repair Stations . | . . Recycling Units . | . . Scanalyzers . | . . Garrison Access . | . . Data Cores Recovered . | . . Used . | . . Hacking Detections 2 | . 2 Full Trace Events . | . . Feedback Events . | . . Feedback Blocked . | . . Robot Schematics Acquired . | . . Robots Built . | . . Authchips . | . . Time . | . . Total Robot Build Rating . | . . Part Schematics Acquired . | . . Parts Built . | . . Authchips . | . . Time . | . . Total Part Build Rating . | . . Parts Repaired . | . . Time . | . . Parts Recycled . | . . Recycled Matter . | . . Retrieved Matter . | . . Retrieved Components . | . . Parts Scanalyzed . | . . Part Schematics Acquired . | . . Parts Damaged . | . . Bothacking | -11 -10 ------------ Run | Yrd Mat Used RIF Installer . | . . Robots Hacked 2 | . 2 Non-combat 2 | . 2 Combat . | . . Robot Hacks Applied 3 | . 3 parse_system 2 | . 2 check_alert 1 | . 1 Relay Couplers Released . | . . Fabnet Peak Effective % . | . . Robots Rewired . | . . Allies Hacked . | . . Hacks Repelled . | . . Allies | -11 -10 -------- Run | Yrd Mat Total Allies . | . . Largest Group . | . . Highest-Rated Group . | . . Highest-Rated Ally . | . . Total Orders . | . . Ally Attacks . | . . Total Damage . | . . Kills . | . . Allies Corrupted . | . . Allies Melted . | . . Intel | -11 -10 ------- Run | Yrd Mat Active Infowar (turns) . | . . Robot Analysis Total . | . . Derelict Logs Recovered . | . . Drone Launches . | . . Drone Recoveries . | . . Exploration | -11 -10 ------------- Run | Yrd Mat Turns Passed 1076 | 53 1023 Spaces Moved 621 | 54 567 Core 18 | 18 . Treads 374 | . 374 Legs . | . . Wheels 229 | 36 193 Hover . | . . Flight . | . . Fastest Speed 50 | 50 80 Average Speed 128 | 70 133 Slowest Speed 160 | 80 160 Overloaded Moves . | . . Propulsion Burnouts . | . . Robots Hopped . | . . Potential Cave-ins . | . . Cave-ins Triggered . | . . Exploration Rate (%) 33 | 3 64 Regions Visited 1 Branch Regions . Pre-discovered Areas . | . . Known Exits Taken . | . . Unknown Exits Taken 1 | 1 . Scrap Searched . | . . Spaces Dug . | . . Terrain Destroyed 24 | . 24 Melee . | . . Projectile . | . . AOE 24 | . 24 Terrain Rammed . | . . Walls Destroyed . | . . Machines Disabled . | . . Actions | -11 -10 --------- Run | Yrd Mat Total 772 | 68 704 Wait 21 | . 21 Move 620 | 53 567 Hop . | . . Pick Up 28 | 9 19 Fast Attach 1 | . 1 Attach 11 | 6 5 Detach 1 | . 1 Swap 8 | . 8 Drop 10 | . 10 Fire 68 | . 68 Melee 4 | . 4 Ram . | . . Kick . | . . Crush . | . . Escape Stasis . | . . Rewire . | . . Trap . | . . Miscellaneous . | . . Route ------- -11/Scrapyard -10/Materials (discovered 2 exits: [*Mat x2]) History --------- Turn | Location | Event 29 | -11/Scrapyard | Discovered new exit (range 15) 54 | -11/Scrapyard | Entered Materials 318 | -10/Materials | Build established: Mutant 541 | -10/Materials | Discovered new exit (range 6) 698 | -10/Materials | Core integrity fell below 50% 870 | -10/Materials | Discovered new exit (range 5) 954 | -10/Materials | Derelicts attacked the area 1076 | -10/Materials | Core integrity fell below 20% 1077 | -10/Materials | Destroyed by UR-M2B(R) with Subdweller Beam Cannon Last Messages --------------- rerouting patrols to target area. 00954_ R-06 Scavenger collects Aluminum Leg. 00971_ W-16 Scout sends out distress signal. 00986_ Acquired 55 matter. 01002_ G-47 Trooper destroyed. 01002_ K-01 Serf collects debris. 01010_ G-34 Mercenary destroyed. 01010_ K-01 Serf collects debris. 01016_ G-34 Mercenary destroyed. 01017_ Acquired 35 matter. 01018_ Acquired 30 matter. 01022_ Acquired Lgt. Nuclear Core. 01024_ Dropped Lgt. Ion Engine. 01026_ Acquired Imp. Heat Sink. 01029_ K-01 Serf collects debris. 01030_ Acquired 12 matter. 01033_ K-01 Serf collects debris. 01060_ K-01 Serf destroyed. 01061_ K-01 Serf collects debris. Map ----- +----------------------------------------------------+ | ????# # # ##########+### | | ????# ###+#############??????# | | ????# + #????????# | | ????# # """ """ """ #????????#""" | | ????# # """ """ """]#????????#""" | | ????# # """ """ """[#????????#""" | | ????# # = [[#????????# | | ????# # = = ==*#????????####### | | ????# ########+####+#########??????? | | ???## ##???###!## = [## #??????? | | ???# ##### # ##! /??????? | | ???# # ## #??????? | | ???# *=[# * ## " |#??????? | | ???# #####!%= # ## T #??????? | | ???######???##=R## ## " #??????? | | ?????????????#*%## #? ???????? | | ?????#########=!###+#"####+##"#??#### | | ?????# """ # *=R % #??# | | ?????# """ # #??# | | ?????# """ # ! #??# | | ?????# +%=R##########"% #??# | | ?????# #! ## """ # #??# | | ?????# * # %=## """ # #??# | | ?????######## = ## """ + #### | | ????######## # # | | ????# @ # !! # | | ????# < " # ! # """ | | ????# # # "Y" | | ????####+### # # | | ????# ################ | | ????# #??????######### !! | | ????# "" #??????# ## | | ????# "T #??????#""" + ! | | ????# "" #??????#"R ## === | | ????# #??????#""" ########+### | | ????########??????# #????#[[ %# | | ??????????????????# """ #????# [ * # | | ??????????????????# """ #????# # | | ??????????????????# """ #????# != # | | ??????????????????# #????# !! # | | ??????????????????#/ """ #????# = # | | ??????????????????# """ #????# # | | ??????????????????# """ #????####### | | ??????????????????# #??????????? | | ??????????????????####+###??????????? | | ????????????????????? ????????????? | | ????????????????????? ???????????? | | ???????????????????? T ??????????? | | ???????????????????? ??????????? | | ???????????????????# ##?????????? | +----------------------------------------------------+ Best States ------------- Heat Dissipation 35 Energy Generation 14 Energy Capacity 250 Matter Stores 300 Matter Capacity 300 Sight Range 16 Terrain Scan Density 10 Evasion (%) 50 Recoil Reduction 2 Item Schematics ----------------- None Robot Schematics ------------------ None Fabricated ------------ Nothing Repaired ---------- Nothing Alien Tech Used ----------------- None Achievements -------------- None Challenges ------------ None Game ------ Seed MissileLightningProjector Manual? 0 Play Time 00:11:17 Cumulative 59.1 hours Start 2025.06.01 @ 15:49:56 End 2025.06.02 @ 22:45:11 Sessions 3 Manual Loads 0 Difficulty Rogue Special Mode None Game No. 62 Rogue 62 Adventurer 0 Explorer 0 Win Type - Total 2 Types 2/0/0/0/0/0/0/0/0/0 Lore% 40 Gallery% 33 Achievement% 34 Wizard Run 0 Options --------- Layout 1 ASCII 0 Keyboard 0 Movement Mouse Keybinds 0 Fullscreen 1 Font 24/Smallcaps Map View 50x35 Zoom Use 0% Tactical HUD 1 Map Filters NONE Filters NONE Steam 1 RUN: a0bb09e6-d126-4d20-880a-d851019aeafe